[Event "FIDE Womens Grand Prix-I 2022-23"]
[Site "Nur-Sultan"]
[Date "2022.09.25"]
[Round "7.1"]
[White "Assaubayeva, Bibisara"]
[Black "Shuvalova, Polina"]
[Result "1/2-1/2"]
[ECO "D37"]
[WhiteElo "2443"]
[BlackElo "2510"]
[Annotator "TA"]
[PlyCount "226"]
[EventDate "2022.09.15"]
[EventType "tourn"]
[EventCountry "KAZ"]
[SourceTitle "playchess.com"]
[Source "ChessBase"]
[SourceQuality "1"]
[TimeControl "40/5400+30:1800+30"]

{[%evp 19,226,0,10,7,7,8,14,0,7,0,0,0,0,0,0,0,0,0,0,-12,-6,-39,-39,-48,-34,-26,-1,-14,-18,-13,0,-2,0,0,10,12,36,0,70,8,12,18,18,0,0,0,0,0,0,0,0,0,0,0,3,0,0,-8,14,0,0,0,0,0,0,-8,-8,-27,0,0,0,0,0,0,0,0,0,0,0,-8,0,0,0,-8,-8,-8,0,0,0,0,0,0,0,-1,0,0,0,0,-8,-8,-8,-8,-8,-12,0,0,0,0,0,0,0,0,0,0,0,0,0,0,0,0,0,0,0,0,0,-8,0,-8,0,-8,0,0,0,-8,0,-8,0,0,0,-8,0,-8,0,-8,0,-8,0,0,0,0,0,0,0,0,0,0,0,0,0,0,0,0,0,0,0,0,0,0,0,0,0,0,0,0,0,0,0,0,0,0,0,0,0,0,0,0,0,0,-8,-8,-8,-8,0,-8,-8,-8,-8,-8,0,-8,0,-8,0,0,0,0,0,0,0]} 1. d4 {[%emt 0:00:03]} Nf6 {[%emt 0:00:04]} 2. c4 {[%emt 0:00:05]} e6 {[%emt 0:00:03]} 3. Nf3 {[%emt 0:00:11]} d5 {[%emt 0:00:04]} 4. Nc3 {[%emt 0:00:06]} Be7 {[%emt 0:00:06]} 5. Bf4 {[%emt 0:00:30]} O-O {[%emt 0:00:13]} 6. e3 {[%emt 0:00:04]} Nbd7 {[%emt 0:00:05]} 7. c5 {[%emt 0:02:29]} Nh5 {[%emt 0:00:18]} 8. Bd3 {[%emt 0:00:41]} Nxf4 {[%emt 0:00:06]} 9. exf4 {[%emt 0:00:04]} b6 {[%emt 0:00:06]} 10. b4 {[%emt 0:02:28]} c6 {[%emt 0:00:06]} 11. O-O {[%emt 0:00:40]} a5 {[%emt 0:00:04]} 12. a3 $1 {[%emt 0:00:24]} Ba6 {[%emt 0:00:05]} 13. Re1 {[%emt 0:09:05]} Bf6 {[%emt 0:00:16]} 14. Bxa6 {[%emt 0:15:23]} Rxa6 {[%emt 0:00:05]} 15. Qd3 {[%emt 0:00:19]} Qa8 {[%emt 0:03:11]} 16. b5 {[%emt 0:12:34]} cxb5 {[%emt 0:07:51]} 17. c6 {[%emt 0:02:48]} Qxc6 {[%emt 0:00:38]} 18. Nxb5 {[%emt 0:00:08]} Rc8 {[%emt 0:04:17]} 19. a4 {[%emt 0:01:01]} Raa8 {[%emt 0:01:47]} 20. Qa3 {[%emt 0:04:34]} Nf8 {[%emt 0:06:09]} 21. Ne5 {[%emt 0:07:58]} Qe8 $1 {[%emt 0:08:45]} 22. Qf3 {[%emt 0:15:32]} Be7 {[%emt 0:07:03]} 23. f5 {[%emt 0:00:25]} Bb4 {[%emt 0:00:55]} 24. Re2 {[%emt 0:03:48]} Qe7 {[%emt 0:09:24]} 25. fxe6 {[%emt 0:00:54]} fxe6 {[%emt 0:06:23]} 26. g3 {[%emt 0:03:36]} Qf6 {[%emt 0:03:01]} 27. Qe3 {[%emt 0:01:00]} Qf5 {[%emt 0:02:58]} 28. h4 {[%emt 0:03:20]} Rab8 {[%emt 0:07:54]} (28... Ng6 $11) 29. g4 {[%emt 0:02:08]} (29. Rc1 $14) 29... Qf6 $11 {[%emt 0:03:08]} 30. h5 {[%emt 0:00:23]} Qe7 {[%emt 0:05:22]} 31. h6 {[%emt 0:01:36]} gxh6 {[%emt 0:04:59]} 32. Qxh6 {[%emt 0:01:34]} Qg7 {[%emt 0:00:40]} 33. Qe3 {[%emt 0:01:17]} Ng6 {[%emt 0:03:30]} 34. Nxg6 {[%emt 0:02:03]} Qxg6 {[%emt 0:00:07]} 35. Qxe6+ {[%emt 0:00:07]} Qxe6 {[%emt 0:00:08]} 36. Rxe6 {[%emt 0:00:03]} Rc2 {[%emt 0:01:04]} 37. f4 {[%emt 0:05:26]} Rbc8 {[%emt 0:02:46]} 38. Rf1 {[%emt 0:00:40]} R8c6 {[%emt 0:05:58]} 39. f5 {[%emt 0:02:04]} Rxe6 {[%emt 0:02:00]} 40. fxe6 {[%emt 0:00:01]} Rc6 {[%emt 0:01:07]} 41. Rf5 {[%emt 0:04:15]} Rxe6 {[%emt 0:02:26]} 42. Rxd5 {[%emt 0:00:20]} Re2 {[%emt 0:03:03]} 43. Rd7 {[%emt 0:05:41]} Ra2 {[%emt 0:00:55]} 44. Nc7 {[%emt 0:01:01]} Rxa4 {[%emt 0:05:06]} 45. Nd5 {[%emt 0:00:42]} Kf8 {[%emt 0:01:57]} 46. Rxh7 {[%emt 0:04:50]} Ba3 {[%emt 0:02:44]} 47. Nxb6 {[%emt 0:05:04]} Rxd4 {[%emt 0:00:08]} 48. Kf1 {[%emt 0:00:27]} Be7 {[%emt 0:01:55]} (48... Rxg4 $2 49. Nd7+ Kg8 50. Nf6+ Kf8 51. Nxg4 $18) 49. Rh8+ {[%emt 0:02:49]} Kf7 {[%emt 0:00:31]} 50. Rh7+ {[%emt 0:01:37]} Kf8 {[%emt 0:02:16]} 51. Rh8+ {[%emt 0:01:15]} Kg7 {[%emt 0:00:07]} 52. Rc8 {[%emt 0:00:33]} Bd8 {[%emt 0:04:27]} 53. Na4 {[%emt 0:01:14]} Kf7 {[%emt 0:02:46]} 54. Ke2 {[%emt 0:00:37]} Bf6 {[%emt 0:01:13]} 55. Nb6 {[%emt 0:03:25]} Bd8 {[%emt 0:02:41]} 56. Na4 {[%emt 0:00:02]} Ke7 {[%emt 0:00:09]} 57. Nc3 {[%emt 0:02:38]} Kd7 {[%emt 0:02:49]} 58. Ra8 {[%emt 0:01:23]} Kc6 {[%emt 0:01:08]} ({Of course not} 58... Rxg4 59. Ra6 $15) 59. Rc8+ {[%emt 0:02:04]} Kb7 {[%emt 0:00:31]} ({Much weaker is} 59... Kd7 60. Rc5 $15) 60. Rc5 $1 {[%emt 0:00:01]} Rxg4 {[%emt 0:01:05]} 61. Kd3 {[%emt 0:00:16]} a4 {[%emt 0:01:01]} 62. Nxa4 {[%emt 0:00:19]} Rxa4 {[%emt 0:00:06]} 63. Rb5+ {[%emt 0:00:13]} Kc6 {[%emt 0:00:05]} 64. Rf5 {[%emt 0:00:06]} Bb6 {[%emt 0:00:19]} 65. Kc3 {[%emt 0:00:21]} Bc5 {[%emt 0:00:07]} 66. Kd3 {[%emt 0:00:10]} Rd4+ {[%emt 0:00:37]} 67. Ke2 {[%emt 0:00:20]} Kd6 {[%emt 0:00:28]} 68. Rh5 {[%emt 0:00:10]} Rf4 {[%emt 0:00:10]} 69. Kd3 {[%emt 0:00:11]} Bd4 {[%emt 0:00:36]} 70. Ra5 {[%emt 0:01:30]} Rh4 {[%emt 0:00:27]} 71. Rb5 {[%emt 0:00:22]} Bc5 {[%emt 0:00:09]} 72. Rb3 {[%emt 0:00:15]} Kd5 {[%emt 0:00:05]} 73. Rc3 {[%emt 0:00:18]} Bb4 {[%emt 0:00:29]} 74. Rb3 {[%emt 0:00:27]} Rg4 {[%emt 0:01:00]} 75. Ke2 {[%emt 0:00:03]} Bc5 {[%emt 0:00:39]} 76. Kd3 {[%emt 0:00:05]} Re4 {[%emt 0:01:32]} 77. Rc3 {[%emt 0:00:08]} Rd4+ {[%emt 0:00:15]} 78. Ke2 {[%emt 0:00:09]} Rh4 {[%emt 0:00:08]} 79. Kd3 {[%emt 0:00:06]} Bb4 {[%emt 0:00:23]} 80. Rb3 {[%emt 0:00:10]} Bc5 {[%emt 0:01:12]} 81. Rc3 {[%emt 0:00:12]} Bd4 {[%emt 0:00:03]} 82. Rb3 {[%emt 0:00:10]} Kc5 {[%emt 0:00:08]} 83. Rb1 {[%emt 0:01:17]} Rh3+ {[%emt 0:00:05]} 84. Ke4 {[%emt 0:00:05]} Re3+ {[%emt 0:00:03]} 85. Kf4 {[%emt 0:00:06]} Re8 {[%emt 0:00:03]} 86. Rh1 {[%emt 0:00:24]} Kd5 {[%emt 0:00:03]} 87. Rh5+ {[%emt 0:00:08]} Be5+ {[%emt 0:00:05]} 88. Kf3 {[%emt 0:00:39]} Rf8+ {[%emt 0:00:08]} 89. Ke3 {[%emt 0:00:18]} Ra8 {[%emt 0:00:06]} 90. Rh4 {[%emt 0:00:09]} Ra3+ {[%emt 0:00:05]} 91. Ke2 {[%emt 0:00:06]} Rb3 {[%emt 0:00:25]} 92. Rg4 {[%emt 0:00:10]} Ra3 {[%emt 0:01:05]} 93. Rh4 {[%emt 0:00:06]} Bg3 {[%emt 0:00:05]} 94. Rb4 {[%emt 0:00:15]} Bd6 {[%emt 0:00:29]} 95. Rh4 {[%emt 0:00:11]} Ke5 {[%emt 0:00:12]} 96. Rg4 {[%emt 0:00:26]} Be7 {[%emt 0:00:20]} 97. Rc4 {[%emt 0:00:21]} Bd6 {[%emt 0:00:24]} 98. Rg4 {[%emt 0:00:07]} Kf5 {[%emt 0:00:03]} 99. Rd4 {[%emt 0:00:09]} Bf4 {[%emt 0:00:27]} 100. Rb4 {[%emt 0:00:14]} Be3 {[%emt 0:00:13]} 101. Rb8 {[%emt 0:00:37]} Bd4 {[%emt 0:00:21]} 102. Re8 {[%emt 0:00:42]} Be5 {[%emt 0:00:08]} 103. Rc8 {[%emt 0:00:40]} Ke4 {[%emt 0:00:14]} 104. Rc4+ {[%emt 0:00:54]} Bd4 {[%emt 0:00:04]} 105. Rc2 {[%emt 0:00:38]} Rh3 {[%emt 0:00:06]} 106. Rd2 {[%emt 0:00:09]} Rh2+ {[%emt 0:01:01]} 107. Kd1 $1 {[%emt 0:00:07]} Rh1+ {[%emt 0:00:05]} 108. Ke2 {[%emt 0:00:21]} Rh3 {[%emt 0:00:04]} 109. Kd1 {[%emt 0:00:28]} Bc3 {[%emt 0:00:10]} 110. Rd8 {[%emt 0:00:26]} Bd4 {[%emt 0:00:07]} 111. Kc2 {[%emt 0:00:14]} Rc3+ {[%emt 0:00:12]} 112. Kd2 {[%emt 0:00:14]} Rb3 {[%emt 0:00:03]} 113. Re8+ {[%emt 0:00:07]} Be5 {[%emt 0:00:03]} 1/2-1/2

[Event "FIDE Womens Grand Prix-I 2022-23"]
[Site "Nur-Sultan"]
[Date "2022.09.25"]
[Round "7.2"]
[White "Tan, Zhongyi"]
[Black "Kashlinskaya, Alina"]
[Result "1-0"]
[ECO "D40"]
[WhiteElo "2525"]
[BlackElo "2491"]
[Annotator "TA"]
[PlyCount "85"]
[EventDate "2022.09.15"]
[EventType "tourn"]
[EventCountry "KAZ"]
[SourceTitle "playchess.com"]
[Source "ChessBase"]
[SourceQuality "1"]
[TimeControl "40/5400+30:1800+30"]

{[%evp 18,85,8,0,7,0,0,0,0,0,12,0,0,0,56,53,37,50,51,41,111,105,105,105,105,105,105,102,95,100,107,98,134,17,13,12,9,0,58,53,55,52,53,52,83,94,154,133,227,228,418,276,263,246,252,252,252,244,405,408,748,748,707,700,29974,616,5189,5214,5704,4647]} 1. d4 {[%emt 0:00:04]} Nf6 {[%emt 0:00:07]} 2. c4 {[%emt 0:00:04]} e6 {[%emt 0:00:06]} 3. Nf3 {[%emt 0:00:04]} d5 {[%emt 0:00:07]} 4. Nc3 {[%emt 0:00:08]} c5 {[%emt 0:00:09]} 5. e3 {[%emt 0:01:06]} Nc6 {[%emt 0:00:09]} 6. a3 {[%emt 0:00:11]} dxc4 {[%emt 0:00:24]} 7. Bxc4 {[%emt 0:00:07]} a6 {[%emt 0:00:12]} 8. O-O {[%emt 0:03:18][%cal Bh1f1,Bf1d1,Bd1d4][%mdl 32]} b5 {[%emt 0:00:18]} 9. Ba2 {[%emt 0:00:31]} Bb7 {[%emt 0:00:11]} 10. Qe2 {[%emt 0:02:57]} cxd4 {[%emt 0:00:31] D40: Queen's Gambit Declined: Semi-Tarrasch with 5 e3.} 11. Rd1 {[%emt 0:00:20][%cal Re3d4]} b4 {[%emt 0:01:31]} 12. axb4 {[%emt 0:12:58]} Nxb4 {[%emt 0:06:57] The position is equal.} 13. Rxd4 {[%emt 0:00:13] [#]} Qa5 $146 {[%emt 0:14:31]} ({Predecessor:} 13... Qb6 14. Bb3 Be7 15. Ba4+ Bc6 16. e4 O-O 17. Bg5 Bxa4 18. Rxa4 a5 19. h3 Rfd8 {½-½ (27) Laine,J (2166)-Maliszewski,G (2250) ICCF email 2017}) 14. Nd2 {[%emt 0:09:22][%cal Oa2e6,Bf3d2,Bd2b3,Bb3a5][%mdl 32]} Nxa2 {[%emt 0:13:51]} (14... Qg5 15. Nde4 Nxe4 16. Nxe4 Bxe4 17. Rxe4 $14) 15. Rxa2 {[%emt 0:00:10]} Qg5 {[%emt 0:01:30]} ({Black should try} 15... Qc7 $11) 16. e4 {[%emt 0:04:56]} (16. Nf3 $5 {[%cal Rf3g5]} Qc5 17. Rc4 $16) 16... Be7 {[%emt 0:06:05]} 17. Nb3 {[%emt 0:05:37]} Qe5 {[%emt 0:01:20]} 18. g3 {[%emt 0:04:36]} Qc7 {[%emt 0:09:50]} (18... Qb8 $14) 19. Rc4 $16 {[%emt 0:02:34]} Qd7 {[%emt 0:01:31] [#]} 20. Bf4 $1 {[%emt 0:04:42]} Rc8 {[%emt 0:02:51] Against Rc7} 21. Rd4 {[%emt 0:00:18]} Qc6 {[%emt 0:00:07]} 22. Na5 {[%emt 0:00:25] White is much more active.} Qb6 {[%emt 0:01:23]} 23. Rc4 {[%emt 0:03:19] Hoping for Be3.} Rxc4 {[%emt 0:06:20]} 24. Qxc4 {[%emt 0:00:13]} (24. Nxc4 Qc5 $11) 24... Ng4 {[%emt 0:02:31] Prevents Be3.} 25. Qa4+ {[%emt 0:02:42]} ({Better is} 25. b4 $16) 25... Kf8 $11 {[%emt 0:00:19]} 26. Nd1 {[%emt 0:08:09] And now h3 would win. Pair of Knights!} Ba8 $132 {[%emt 0:06:22][%mdl 2048] Black puts up resistance} 27. Ne3 {[%emt 0:07:25]} Nxe3 {[%emt 0:08:29]} (27... g5 $11 28. Bxg5 (28. Nxg4 gxf4 29. Ne5 Kg7 $15) 28... Bxg5 29. Nxg4 Kg7) 28. Bxe3 $14 {[%emt 0:00:07]} Qb4 {[%emt 0:00:48]} 29. Qxb4 {[%emt 0:07:04]} Bxb4 {[%emt 0:00:01]} 30. Nc4 {[%emt 0:04:53]} Bxe4 {[%emt 0:06:04]} 31. Rxa6 {[%emt 0:00:08] Rb6 is the strong threat.} Ke7 {[%emt 0:01:26]} (31... Be7 $142) 32. Ra7+ {[%emt 0:04:56]} Kf6 {[%emt 0:05:22]} (32... Ke8 $16) 33. Bd4+ $18 {[%emt 0:00:07]} Kg6 $2 {[%emt 0:03:05]} (33... e5 34. Nxe5 Ke6) 34. Ne5+ {[%emt 0:00:42]} Kh5 {[%emt 0:00:00] [#]} 35. f3 $1 {[%emt 0:07:22]} (35. Nxf7 Ra8 $14) ({Weaker is} 35. Rxf7 Rd8 36. Rd7 Rxd7 37. Nxd7 Kg6 $16) 35... f6 {[%emt 0:01:30]} 36. Nf7 {[%emt 0:03:19]} ({Less strong is} 36. fxe4 fxe5 37. Be3 Kg6 $16) 36... Rc8 {[%emt 0:00:29]} 37. fxe4 {[%emt 0:00:20]} Kg4 $2 {[%emt 0:01:04]} (37... Rc4) 38. Kf2 {[%emt 0:00:51]} e5 {[%emt 0:00:34] [#]} (38... Rc2+ $142 39. Ke3 Rxh2) 39. Nxe5+ $1 {[%emt 0:00:09]} fxe5 {[%emt 0:00:04]} 40. Rxg7+ {[%emt 0:00:05]} Kh5 {[%emt 0:00:07]} 41. Bxe5 {[%emt 0:30:29]} (41. Be3 $142 h6 42. Kg2 Rf8 43. h3 Rf4 44. gxf4 exf4 45. Bxf4 Bc5 46. e5) 41... Rc2+ {[%emt 0:31:39]} 42. Kf3 {[%emt 0:00:25] Threatening mate with Bf4.} Kh6 {[%emt 0:00:58]} 43. Rg8 {[%emt 0:00:09] Weighted Error Value: White=0.26 (precise) /Black=0.49} 1-0

[Event "FIDE Womens Grand Prix-I 2022-23"]
[Site "Nur-Sultan"]
[Date "2022.09.25"]
[Round "7.3"]
[White "Wagner, Dinara"]
[Black "Lagno, Kateryna"]
[Result "0-1"]
[ECO "E11"]
[WhiteElo "2358"]
[BlackElo "2547"]
[Annotator "TA"]
[PlyCount "68"]
[EventDate "2022.09.15"]
[EventType "tourn"]
[EventCountry "KAZ"]
[SourceTitle "playchess.com"]
[Source "ChessBase"]
[SourceQuality "1"]
[TimeControl "40/5400+30:1800+30"]

{[%evp 9,68,18,17,0,0,0,6,0,19,10,24,14,27,15,0,-9,-18,-35,-44,-41,-35,-24,-9,-58,-6,-54,-49,-62,-38,-34,-20,-17,-25,-16,-15,-19,-20,-24,-17,-107,-96,-168,-175,-259,-40,-1004,-1000,-1058,-1037,-29974,-1116,-1460,-1105,-1104,-1103,-973,-961,-883,-759,-951,-900]} 1. d4 {[%emt 0:00:04]} Nf6 {[%emt 0:00:09]} 2. c4 {[%emt 0:00:04]} e6 {[%emt 0:00:06]} 3. Nf3 {[%emt 0:00:06]} d5 {[%emt 0:00:12]} 4. g3 {[%emt 0:00:19]} Bb4+ {[%emt 0:00:14]} 5. Bd2 {[%emt 0:00:47]} Be7 {[%emt 0:00:13]} 6. Bg2 {[%emt 0:01:03] E11: Bogo-Indian.} Nbd7 {[%emt 0:00:30]} 7. O-O {[%emt 0:00:47] 7.0-0 scores better than 7.Qc2.} c6 {[%emt 0:00:23]} 8. Qc2 {[%emt 0:05:39] The position is equal.} Ne4 {[%emt 0:00:39]} 9. Bf4 {[%emt 0:00:50]} g5 {[%emt 0:00:31]} 10. Bc1 {[%emt 0:11:10]} h5 {[%emt 0:01:10]} 11. Nc3 {[%emt 0:01:37]} f5 {[%emt 0:00:26]} 12. Nxe4 {[%emt 0:11:17]} dxe4 {[%emt 0:00:41]} 13. Ne5 {[%emt 0:01:04]} Nxe5 {[%emt 0:19:05]} 14. dxe5 {[%emt 0:00:13]} Qc7 {[%emt 0:12:10] [#]} 15. Qc3 $146 {[%emt 0:07:40]} ({Predecessor:} 15. b3 c5 16. Rd1 Bd7 17. Bb2 O-O-O 18. a3 e3 19. fxe3 Bc6 20. e4 fxe4 21. Bxe4 {1-0 (48) Berdnyk,M (2308)-Vaishali,R (2414) Chess.com INT 2021}) 15... c5 {[%emt 0:04:58]} 16. a3 {[%emt 0:13:29]} (16. f3 $11) 16... a5 {[%emt 0:04:36]} (16... Bd7 $15) 17. Bd2 {[%emt 0:30:28]} (17. f3 $11) 17... Bd7 {[%emt 0:02:56]} 18. Rfd1 {[%emt 0:07:05]} Kf7 {[%emt 0:10:36]} 19. f3 {[%emt 0:00:45]} exf3 {[%emt 0:00:32]} 20. Bxf3 {[%emt 0:01:51]} Bc6 {[%emt 0:01:25] Against e4} 21. e4 {[%emt 0:00:18]} fxe4 {[%emt 0:10:23]} 22. Bg2 {[%emt 0:00:02]} Rad8 {[%emt 0:06:08]} 23. Qe3 {[%emt 0:00:36]} Rd3 $36 {[%emt 0:02:38][%mdl 2048] Black is pushing.} (23... Qxe5 $2 24. Bc3 Qc7 25. Rf1+ (25. Bxe4 Bxe4 26. Bxh8 Rxh8 $16) (25. Bxh8 Rxh8 26. Rf1+ Kg7 $18) 25... Kg8 26. Bxe4 (26. Qf2 Rh7 $16) 26... Bxe4 27. Bxh8 $18 (27. Qxe4 Rh6 $16)) 24. Rf1+ {[%emt 0:01:57]} (24. Qe2 $1 $11) 24... Kg7 $17 {[%emt 0:03:03] Dancing on a razor blade.} 25. Qe2 {[%emt 0:00:04] [#]} (25. Qf2 $17 {was called for.} Rf8 26. Qe2) 25... h4 $1 $19 {[%emt 0:04:06]} 26. Be1 {[%emt 0:01:54]} (26. Qf2 {was worth a try.} Rf8 27. Qe2) 26... Qxe5 $2 {[%emt 0:03:43]} (26... hxg3 $19 27. Bxg3 Qd7) 27. gxh4 $2 {[%emt 0:02:19][%mdl 8192] White does not recover from this.} (27. Qxd3 $15 exd3 28. Bc3 Qxc3 29. bxc3) 27... Bd6 {[%emt 0:01:27][%cal Be7d6,Bd6h2,Bh2g3][%mdl 32]} 28. Bh1 {[%emt 0:00:17]} Qd4+ {[%emt 0:04:50]} 29. Bf2 {[%emt 0:00:23] [#]} e3 {[%emt 0:01:09]} (29... Bxh2+ $142 $1 {[%mdl 512]} 30. Kxh2 e3 31. Bxc6 exf2 32. Qxf2 Rd2 33. Qxd2 Rxh4+ 34. Kg3 Qxd2 35. Bg2 Qe3+ 36. Rf3 Qe5+ 37. Kf2 Qxb2+ 38. Kg3 Qxa1 39. Re3 Qd4 40. Re4 Rxe4 41. Bxe4 Qxe4 42. Kf2 g4 43. a4 Kf6 44. Kg1 g3 45. Kf1 Kg5 46. Kg1 Qe2 47. Kh1 Qh2#) 30. Be1 {[%emt 0:00:02] [#] Black is clearly winning.} Rd2 $1 {[%emt 0:02:44][%mdl 512]} 31. Bxd2 {[%emt 0:01:06]} exd2+ {[%emt 0:00:03]} 32. Rf2 {[%emt 0:00:24] [#]} Bxh2+ $1 {[%emt 0:00:35][%mdl 576] Pin. A strong pair of Bishops.} 33. Kf1 {[%emt 0:00:04]} Bxh1 {[%emt 0:00:30]} 34. Rd1 {[%emt 0:00:57]} Bg3 {[%emt 0:00:45] Weighted Error Value: White=0.74/Black=0.57} 0-1

[Event "FIDE Womens Grand Prix-I 2022-23"]
[Site "Nur-Sultan"]
[Date "2022.09.25"]
[Round "7.4"]
[White "Paehtz, Elisabeth"]
[Black "Goryachkina, Aleksandra"]
[Result "1/2-1/2"]
[ECO "D10"]
[WhiteElo "2477"]
[BlackElo "2579"]
[Annotator "RC"]
[PlyCount "80"]
[EventDate "2022.09.15"]
[EventType "tourn"]
[EventCountry "KAZ"]
[SourceTitle "playchess.com"]
[Source "ChessBase"]
[SourceQuality "1"]
[TimeControl "40/5400+30:1800+30"]

1. d4 {[%emt 0:00:02]} d5 {[%emt 0:00:13]} 2. c4 {[%emt 0:00:03]} c6 {[%emt 0:00:16]} 3. cxd5 {[%emt 0:00:05]} cxd5 {[%emt 0:00:06]} 4. Bf4 {[%emt 0:00:04]} Nf6 {[%emt 0:01:40]} 5. Nc3 {[%emt 0:00:07]} Nc6 {[%emt 0:00:26]} 6. e3 {[%emt 0:00:04]} Bf5 {[%emt 0:02:54]} 7. Qb3 {[%emt 0:00:16]} Na5 {[%emt 0:01:12]} 8. Qa4+ {[%emt 0:00:04]} Bd7 {[%emt 0:00:11]} 9. Qc2 {[%emt 0:00:04]} e6 {[%emt 0:01:00]} 10. Bd3 {[%emt 0:00:04]} Nh5 {[%emt 0:03:14]} 11. Be5 {[%emt 0:00:47]} f6 {[%emt 0:01:44]} 12. Bg3 {[%emt 0:17:14]} g6 {[%emt 0:01:29]} 13. Nge2 {[%emt 0:00:59]} Rc8 {[%emt 0:01:20]} 14. Bh4 {[%emt 0:13:07]} Be7 {[%emt 0:14:18]} 15. g4 {[%emt 0:03:04]} Ng7 {[%emt 0:00:27]} 16. Bg3 {[%emt 0:00:19]} a6 {[%emt 0:05:45]} 17. h4 {[%emt 0:03:41]} Bb5 {[%emt 0:01:56]} 18. Bxb5+ {[%emt 0:13:50]} axb5 {[%emt 0:00:05]} 19. a3 {[%emt 0:00:08]} Kf7 {[%emt 0:06:05]} 20. Nf4 {[%emt 0:07:33]} Nc4 {[%emt 0:03:03]} 21. O-O {[%emt 0:10:13]} f5 {[%emt 0:16:07]} 22. h5 {[%emt 0:00:55]} Bd6 {[%emt 0:05:03]} 23. h6 {[%emt 0:02:00]} Ne8 {[%emt 0:00:26]} 24. Qe2 {[%emt 0:06:50]} Nf6 {[%emt 0:03:58]} 25. Nxb5 {[%emt 0:02:12]} Bb8 {[%emt 0:05:32]} 26. b3 {[%emt 0:13:49]} Nd6 {[%emt 0:00:16]} 27. Nxd6+ {[%emt 0:00:55]} Bxd6 {[%emt 0:00:06]} 28. Qb5 {[%emt 0:00:22]} Qe7 {[%emt 0:08:58]} 29. Rac1 {[%emt 0:02:00]} Ne4 {[%emt 0:04:14]} 30. gxf5 {[%emt 0:01:57]} gxf5 {[%emt 0:00:38]} 31. Qe2 {[%emt 0:00:10]} Qg5 {[%emt 0:02:24]} 32. Kg2 {[%emt 0:01:22]} Rhg8 {[%emt 0:03:57]} 33. Rxc8 {[%emt 0:01:23]} Rxc8 {[%emt 0:00:01]} 34. Qb5 {[%emt 0:00:08]} Rc7 {[%emt 0:01:57]} 35. Qb6 {[%emt 0:01:36]} Qg4 {[%emt 0:01:26]} 36. Qb5 {[%emt 0:00:30]} Bxf4 {[%emt 0:04:44]} 37. exf4 {[%emt 0:00:02]} Rc3 {[%emt 0:01:04]} 38. Qd7+ {[%emt 0:00:12]} Kf8 {[%emt 0:00:28]} 39. Qd8+ {[%emt 0:00:05]} Kf7 {[%emt 0:00:05]} 40. Qd7+ {[%emt 0:00:03]} Kf8 {[%emt 0:00:11]} 1/2-1/2

[Event "FIDE Womens Grand Prix-I 2022-23"]
[Site "Nur-Sultan"]
[Date "2022.09.25"]
[Round "7.5"]
[White "Zhu, Jiner"]
[Black "Vaishali, Rameshbabu"]
[Result "1/2-1/2"]
[ECO "B33"]
[WhiteElo "2464"]
[BlackElo "2449"]
[Annotator "TA"]
[PlyCount "62"]
[EventDate "2022.09.15"]
[EventType "tourn"]
[EventCountry "KAZ"]
[SourceTitle "playchess.com"]
[Source "ChessBase"]
[SourceQuality "1"]
[TimeControl "40/5400+30:1800+30"]

{[%evp 24,62,30,14,13,13,16,15,13,8,12,14,18,23,15,13,39,28,37,26,33,47,41,52,64,46,57,0,0,0,0,0,0,0,0,0,0,0,0,0,0]} 1. e4 {[%emt 0:00:05]} c5 {[%emt 0:00:45]} 2. Nf3 {[%emt 0:00:12][%cal Bg1f3,Bf3d4,Bd4b5,Bb5a3,Ba3c2][%mdl 32]} Nc6 {[%emt 0:00:05]} 3. d4 {[%emt 0:00:09]} cxd4 {[%emt 0:00:05]} 4. Nxd4 {[%emt 0:00:05]} Nf6 {[%emt 0:00:04]} 5. Nc3 {[%emt 0:00:18]} e5 {[%emt 0:00:05]} 6. Ndb5 {[%emt 0:00:53]} d6 {[%emt 0:00:07]} 7. Bg5 {[%emt 0:03:55]} a6 {[%emt 0:00:07]} 8. Na3 {[%emt 0:00:04]} b5 {[%emt 0:00:05]} 9. Nd5 {[%emt 0:00:07]} Be7 {[%emt 0:00:06][%cal Bf8e7,Be7f6,Bf6g5,Bg5h6][%mdl 32]} 10. Bxf6 {[%emt 0:00:07]} Bxf6 {[%emt 0:00:05]} 11. c3 {[%emt 0:00:07]} Rb8 {[%emt 0:00:25]} 12. Nc2 {[%emt 0:00:08]} Bg5 {[%emt 0:00:12]} 13. g3 {[%emt 0:09:37]} O-O {[%emt 0:03:05] B33: Sicilian: Pelikan and Sveshnikov Variations.} 14. h4 {[%emt 0:00:08]} Bh6 {[%emt 0:00:07]} 15. Bh3 {[%emt 0:00:14]} Be6 {[%emt 0:00:22]} 16. Qd3 $1 {[%emt 0:04:31][%mdl 4] is recently more successful than 16.Bxe6.} Qd7 {[%emt 0:01:38]} 17. Bxe6 {[%emt 0:01:33]} fxe6 {[%emt 0:00:02]} 18. Nde3 {[%emt 0:00:07]} Bxe3 {[%emt 0:00:30]} 19. Nxe3 {[%emt 0:00:10]} Rbd8 {[%emt 0:01:03]} 20. Rd1 {[%emt 0:03:05]} Qf7 {[%emt 0:01:29][%csl Gf8][%cal Rf7f2] [#]} 21. O-O {[%emt 0:00:54][%cal Oa2a4]} d5 {[%emt 0:01:48]} 22. exd5 {[%emt 0:10:10]} exd5 {[%emt 0:00:08]} 23. Nxd5 {[%emt 0:00:27]} Nd4 {[%emt 0:00:52]} 24. cxd4 {[%emt 0:04:42]} Qxd5 {[%emt 0:00:19] [#]} 25. Qb3 $146 {[%emt 0:04:40]} (25. Qa3 $14) ({Predecessor:} 25. Qa3 exd4 26. Qxa6 d3 27. Rd2 h6 28. Qa3 Kh8 29. Qb3 Qf5 30. Re1 Qc5 31. Qc3 {½-½ (94) Maghsoodloo,P (2706)-Praggnanandhaa,R (2610) Kolkata 2021}) 25... Qxb3 $11 {[%emt 0:04:41] The position is equal.} 26. axb3 {[%emt 0:00:09]} Rxd4 {[%emt 0:04:19]} 27. Rxd4 {[%emt 0:00:53]} exd4 {[%emt 0:00:02] KR-KR} 28. Kg2 {[%emt 0:00:40]} Rc8 {[%emt 0:00:32]} 29. Rd1 {[%emt 0:00:09]} Rc2 {[%emt 0:00:05] Inhibits Rd2.} 30. Rxd4 {[%emt 0:00:07]} Rxb2 {[%emt 0:00:04]} 31. b4 {[%emt 0:00:07]} h5 {[%emt 0:00:40] Weighted Error Value: White=0.06 (flawless) /Black=0.02 (flawless)} 1/2-1/2